bitfinex-derivatives/quotes_ETHF0:USTF0_20250624
["timestamp","ask_amount","ask_price","bid_price","bid_amount"]
[1750791962235,39.11359686,2439.3,2438.8,0.6557]
[1750791962438,3.2078,2439.0,2438.9,0.65567]
[1750791962739,29.42446,2439.0,2438.9,2.94647]
[1750791962934,29.42446,2439.0,2438.9,0.94]
[1750791963145,28.7688,2439.0,2438.9,1.59568]
[1750791963331,29.42446,2439.0,2438.9,1.59568]
[1750791963636,29.42446,2439.0,2438.9,0.94]
[1750791963836,29.42446,2439.0,2438.9,1.59568]
[1750791964140,28.7688,2439.0,2438.9,1.59568]
[1750791964338,3.2078,2439.0,2438.9,1.59568]
[1750791964538,28.7708,2439.0,2438.9,1.59568]
[1750791964739,25.563,2439.0,2438.9,1.59568]
[1750791965839,1.63881,2439.5,2438.9,0.94]
[1750791966044,0.65559,2439.3,2439.2,0.65559]
[1750791966235,26.21757,2439.4,2439.3,0.65558]
[1750791966540,27.35952709,2439.4,2439.3,1.13558]
[1750791966739,27.35952709,2439.4,2439.3,0.48]
[1750791967338,26.70395709,2439.4,2439.3,1.13558]
[1750791967742,27.35950709,2439.4,2439.3,1.13558]
[1750791968041,26.70395709,2439.4,2439.3,1.13558]
[1750791968434,27.35950709,2439.4,2439.3,0.48]
[1750791971438,1.14195709,2439.4,2439.3,0.48]
[1750791971641,1.79569979,2439.4,2439.3,0.48]
[1750791973045,1.79569979,2439.4,2439.3,1.13558]
[1750791973345,1.79569979,2439.4,2439.3,0.48]
[1750791975044,1.639,2439.3,2438.2,3.2078]
[1750791975245,0.65578,2438.6,2438.4,0.65581]
[1750791975439,0.65579,2438.5,2438.4,0.64]
[1750791975634,1.79607331,2438.5,2438.4,0.64]
[1750791976848,1.14028331,2438.5,2438.4,2.72322]
[1750791977036,25.562,2438.8,2438.7,0.65574]
[1750791977240,27.35728607,2438.8,2438.7,0.4]
[1750791977742,27.35728607,2438.8,2438.7,1.8274]
[1750791978448,1.13956607,2438.8,2438.7,2.48314]
[1750791978649,25.561,2438.8,2438.7,1.8274]
[1750791978845,2.44669794,2439.4,2438.7,13.6074]
[1750791978846,25.561,2439.4,2438.7,13.6074]
[1750791979146,1.1401764,2439.3,2439.2,0.6556]
[1750791979345,1.1401764,2439.3,2439.2,0.9156]
[1750791979536,3.2078,2439.5,2439.4,0.65555]
[1750791979740,0.65555,2439.4,2439.3,2.03166]
[1750791980036,1.14005548,2439.4,2439.3,2.97166]
[1750791982555,3.2078,2439.8,2439.7,0.65547]
[1750791982851,1.13961677,2439.8,2439.7,0.59]
[1750791983050,1.13961677,2439.8,2439.7,1.24545]
[1750791983749,26.2164,2440.0,2439.9,0.65541]
[1750791983947,1.13951865,2440.0,2439.9,1.06541]
[1750791984158,26.70051865,2440.0,2439.9,1.06541]
[1750791984748,27.35590865,2440.0,2439.9,1.06541]
[1750791985146,27.35590865,2440.0,2439.9,0.41]
[1750791985344,27.35590865,2440.0,2439.9,1.06541]
[1750791985654,27.35590865,2440.0,2439.9,2.40641]
[1750791986047,26.70051865,2440.0,2439.9,2.40641]
[1750791986247,27.35590865,2440.0,2439.9,2.40641]
[1750791986552,26.21639,2440.0,2439.9,2.40641]
[1750791987243,0.65536,2440.1,2439.9,1.751]
[1750791987445,1.13853923,2440.0,2439.9,2.40641]
[1750791987754,25.558,2440.1,2439.9,2.40639]
[1750791987951,1.79298039,2440.0,2439.9,2.40639]
[1750791988458,26.21337,2440.1,2440.0,0.65537]
[1750791988648,27.35061381,2440.1,2440.0,1.04537]
[1750791988848,27.35061381,2440.1,2440.0,2.44457]
[1750791989255,1.13724381,2440.1,2440.0,2.44457]
[1750791989451,1.79260381,2440.1,2440.0,2.44457]
[1750791989647,0.65536,2440.1,2440.0,2.44457]
[1750791989950,3.86315,2440.2,2440.1,0.65536]
[1750791990152,28.7638,2440.2,2440.1,2.23456]
[1750791990751,5.77495991,2440.6,2440.4,0.65526]
[1750791990752,0.65524,2440.6,2440.4,0.65526]
[1750791991048,0.65524,2440.6,2440.5,2.7016]
[1750791991252,0.65524,2440.6,2440.5,0.09]
[1750791991451,1.79212094,2440.6,2440.5,0.09]
[1750791992046,0.65533,2440.2,2440.1,0.6537]
[1750791992247,0.65533,2440.2,2440.1,1.4037]
[1750791992446,0.65533,2440.2,2440.1,2.05906]
[1750791992751,0.65533,2440.2,2440.1,1.4037]
[1750791994551,3.2078,2440.4,2440.1,1.4037]
[1750791994855,0.65533,2440.2,2440.1,1.4037]
[1750791995157,0.65533,2440.2,2440.1,2.05906]
[1750791995860,0.65532,2440.3,2440.2,0.65533]
[1750791996052,0.65532,2440.3,2440.2,1.25533]
[1750791996658,3.2078,2440.7,2440.3,0.65531]
[1750791996862,0.65528,2440.4,2440.3,0.35]
[1750791997052,3.86308,2440.4,2440.3,0.35]
[1750791997856,0.65528,2440.4,2440.3,0.35]
[1750791998062,0.65525,2440.5,2440.4,0.65527]
[1750791998263,0.65525,2440.5,2440.4,1.67497]
[1750791998465,0.65525,2440.5,2440.4,0.32]
[1750791998758,26.20725,2440.6,2440.4,0.32]
[1750791999169,29.41302,2440.7,2440.6,0.65523]
[1750791999362,0.6552,2440.7,2440.6,0.14]
[1750791999763,0.6552,2440.7,2440.6,0.79521]
[1750792001060,0.6552,2440.7,2440.6,0.14]
[1750792002258,2.0265,2440.7,2440.6,0.14]
[1750792002658,5.2343,2440.7,2440.6,0.14]
[1750792003660,0.65533,2440.2,2440.1,0.9037]
[1750792003863,0.65533,2440.2,2440.1,6.8537]
[1750792004063,3.86312,2440.3,2440.1,6.8537]
[1750792004264,3.2078,2440.3,2440.1,6.8537]
[1750792004465,0.65533,2440.2,2440.1,7.50904]
[1750792004764,3.86312,2440.3,2440.2,0.65533]
[1750792004968,3.86312,2440.3,2440.2,1.27533]
[1750792006368,0.65532,2440.3,2440.2,1.27533]
[1750792006567,26.1985,2440.4,2440.3,0.65531]
[1750792006767,3.86305,2440.6,2440.5,0.65525]
[1750792007066,3.86305,2440.6,2440.5,0.79525]
[1750792007370,4.99699483,2440.6,2440.5,0.79525]
[1750792007960,1.13394483,2440.6,2440.5,0.79525]
[1750792008169,26.20118,2440.8,2440.7,0.6552]
[1750792008467,1.78913052,2440.8,2440.7,0.6552]
[1750792008765,27.33513052,2440.8,2440.7,1.0152]
[1750792008970,27.33513052,2440.8,2440.7,0.36]
[1750792009570,27.33513052,2440.8,2440.7,1.0152]
[1750792010966,1.78913052,2440.8,2440.7,1.0152]
[1750792011166,1.13395052,2440.8,2440.7,1.0152]
[1750792011469,26.67895052,2440.8,2440.7,1.7009]
[1750792012569,27.33412052,2440.8,2440.7,1.7009]
[1750792013668,1.13395052,2440.8,2440.7,1.7009]
[1750792013868,1.13395052,2440.8,2440.7,3.112]
[1750792014773,1.78912052,2440.8,2440.7,2.4568]
[1750792014973,1.78912052,2440.8,2440.7,3.112]
[1750792014974,1.13395052,2440.8,2440.7,3.112]
[1750792015871,1.78912052,2440.8,2440.7,3.112]
[1750792016175,1.13395052,2440.8,2440.7,3.112]
[1750792022270,3.86288,2441.2,2441.1,0.65509]
[1750792022471,29.40188,2441.2,2441.1,0.69509]
[1750792023975,29.40188,2441.2,2441.1,0.04]
[1750792024175,29.40188,2441.2,2441.1,0.65509]
[1750792024374,3.2078,2441.2,2441.1,0.65509]
[1750792024575,28.7468,2441.2,2441.1,0.91509]
[1750792025375,29.40187,2441.2,2441.1,0.91509]
[1750792025778,28.7468,2441.2,2441.1,0.91509]
[1750792025979,28.7468,2441.2,2441.1,2.23809]
[1750792026173,29.40187,2441.2,2441.1,2.23809]
[1750792026582,28.7468,2441.2,2441.1,2.23809]
[1750792027074,29.40187,2441.2,2441.1,2.23809]
[1750792027780,3.2078,2441.2,2441.1,2.23809]
[1750792027983,0.65506,2441.3,2441.2,0.65507]
[1750792028176,26.19006,2441.3,2441.2,1.16507]
[1750792028482,0.65506,2441.3,2441.2,1.16507]
[1750792028781,3.8628,2441.5,2441.4,0.65501]
[1750792029081,0.655,2441.5,2441.4,0.65501]
[1750792029274,26.189,2441.5,2441.4,0.66501]
[1750792029575,5.64972688,2441.8,2441.5,0.65498]
[1750792029780,0.65486,2442.0,2441.7,3.04510021]
[1750792029979,3.2078,2442.1,2441.8,0.7162]
[1750792030281,3.2078,2442.1,2442.0,0.65485]
[1750792030481,3.2078,2442.1,2442.0,0.66485]
[1750792031077,3.86262,2442.1,2442.0,0.66485]
[1750792031277,3.86262,2442.1,2441.8,2.1162]
[1750792031278,0.65487,2442.0,2441.8,0.7162]
[1750792031480,0.65487,2442.0,2441.8,0.8362]
[1750792031680,3.69998021,2441.9,2441.8,0.12]
[1750792031876,5.39193021,2441.9,2441.3,0.84503]
[1750792032183,0.65501,2441.4,2441.3,1.72]
[1750792032378,26.18601,2441.4,2441.3,1.72]
[1750792032773,26.89561,2441.4,2441.3,1.72]
[1750792033184,0.65512,2441.0,2440.9,0.65515]
[1750792033376,0.65512,2441.0,2440.9,5.9]
[1750792033578,0.65511,2441.1,2440.9,6.55514]
[1750792034086,0.65512,2441.0,2440.9,6.55514]
[1750792034283,0.65512,2441.0,2440.9,5.9]
[1750792034587,0.65509,2441.1,2440.9,6.55513]
[1750792035389,3.86288,2441.2,2441.0,0.65512]
[1750792035590,3.2078,2441.2,2441.1,0.65509]
[1750792036487,3.86288,2441.2,2441.0,0.6551]
[1750792036686,3.86288,2441.2,2441.0,0.6751]
[1750792037082,3.86288,2441.2,2441.1,0.65509]
[1750792037484,3.2078,2441.2,2441.1,0.65509]
[1750792037689,1.36463,2441.4,2441.2,0.65507]
[1750792037891,26.65645748,2441.3,2441.2,0.81507]
[1750792038291,27.31149748,2441.3,2441.2,0.16]
[1750792038791,27.31149748,2441.3,2441.2,0.81507]
[1750792039793,1.12845748,2441.3,2441.2,0.81507]
[1750792040093,26.65545748,2441.3,2441.2,0.81507]
[1750792040792,1.12845748,2441.3,2441.2,4.02287]
[1750792040992,26.2212,2441.7,2441.6,0.65496]
[1750792041180,0.65497,2441.6,2441.5,0.65498]
[1750792041381,1.78501156,2441.6,2441.5,1.19498]
[1750792041591,1.13004156,2441.6,2441.5,1.19498]
[1750792042891,1.12985593,2441.6,2441.5,1.19498]
[1750792043094,1.78481593,2441.6,2441.5,1.19498]
[1750792043786,1.12985593,2441.6,2441.5,1.19498]
[1750792043991,25.526,2441.8,2441.7,0.65493]
[1750792044295,25.524,2442.0,2441.9,0.65488]
[1750792044496,26.65376083,2442.0,2441.9,0.67488]
[1750792044891,26.65376083,2442.0,2441.9,2.07808]
[1750792045094,1.12976083,2442.0,2441.9,2.07808]
[1750792045295,6.767,2442.2,2442.1,0.65482]
[1750792045489,7.42175,2442.4,2442.3,0.65477]
[1750792045695,0.6866,2442.8,2442.5,0.65471]
[1750792045886,3.86249,2442.6,2442.5,0.18]
[1750792046086,4.99155601,2442.6,2442.5,0.18]
[1750792046300,6.42375601,2442.6,2442.5,0.18]
[1750792051306,0.65482,2442.1,2442.0,0.6602]
[1750792051603,26.16982,2442.1,2442.0,0.59]
[1750792054209,5.75816393,2441.7,2441.2,0.65505]
[1750792054517,0.65504,2441.3,2441.2,0.73]
[1750792054816,26.16904,2441.3,2441.2,0.73]
[1750792055715,26.16904,2441.3,2441.2,1.38507]
[1750792055914,26.16904,2441.3,2441.2,0.73]
[1750792056616,3.2078,2441.4,2441.2,1.38507]
[1750792056809,26.16804,2441.3,2441.2,0.73]
[1750792057417,26.16804,2441.3,2441.2,1.38507]
[1750792057824,25.513,2441.3,2441.2,1.38507]
[1750792058011,26.16804,2441.3,2441.2,1.38507]
[1750792058325,26.16804,2441.3,2441.2,0.73]
[1750792058913,25.513,2441.3,2441.2,1.38507]
[1750792059609,0.655,2441.5,2441.2,0.73]
[1750792059809,26.17001,2441.4,2441.3,1.3499]
[1750792060013,26.17001,2441.4,2441.3,2.1737]
[1750792060422,26.17001,2441.4,2441.3,2.82874]
[1750792060717,26.17001,2441.4,2441.3,2.1737]
[1750792061618,25.515,2441.4,2441.3,2.82874]
[1750792062221,26.17001,2441.4,2441.3,2.82874]
[1750792062622,25.515,2441.4,2441.3,2.82874]
[1750792063015,26.17001,2441.4,2441.3,2.82874]
[1750792063529,25.515,2441.4,2441.3,2.82874]
[1750792064223,3.2078,2441.7,2441.5,0.65497]
[1750792064418,27.30450889,2441.6,2441.5,0.65497]
[1750792064727,27.30450889,2441.6,2441.5,0.65498]
[1750792065124,0.65499,2441.5,2441.4,0.65499]
[1750792065425,0.65499,2441.5,2441.4,0.13]
[1750792065631,0.65499,2441.5,2441.4,0.78501]
[1750792066423,3.2078,2441.7,2441.4,0.13]
[1750792066623,1.13589609,2441.6,2441.5,0.6481]
[1750792066925,1.79085609,2441.6,2441.5,0.6681]
[1750792067525,1.79085609,2441.6,2441.5,0.02]
[1750792067725,2.50795609,2441.6,2441.5,0.02]
[1750792068819,8.26612002,2441.6,2441.5,0.02]
[1750792069025,10.27842002,2441.6,2441.5,0.02]
[1750792070024,0.65507,2441.2,2441.1,0.6583]
[1750792070223,3.86285,2441.3,2441.2,0.65507]
[1750792070427,3.2078,2441.3,2441.2,1.11507]
[1750792070628,3.86284,2441.3,2441.2,0.46]
[1750792071025,3.86284,2441.3,2441.2,1.11507]
[1750792071026,3.2078,2441.3,2441.2,1.11507]
[1750792071328,3.2078,2441.3,2441.2,2.47087]
[1750792071523,3.2078,2441.3,2441.2,1.11507]
[1750792071920,3.2078,2441.3,2441.2,2.47087]
[1750792073531,3.86284,2441.3,2441.2,2.47087]
[1750792074735,3.2078,2441.3,2441.2,2.47087]
[1750792076637,3.86284,2441.3,2441.2,2.47087]
[1750792076838,3.86284,2441.3,2441.2,1.11507]
[1750792077037,3.86284,2441.3,2441.2,0.46]
[1750792077238,4.99918789,2441.3,2441.2,0.46]
[1750792079738,4.99918789,2441.3,2441.2,1.11507]
[1750792080038,4.34414789,2441.3,2441.2,1.11507]
[1750792080239,4.99918789,2441.3,2441.2,1.11507]
[1750792080839,4.34414789,2441.3,2441.2,1.11507]
[1750792081833,4.34414789,2441.3,2441.2,2.46777]
[1750792082037,4.99918789,2441.3,2441.2,2.46777]
[1750792082233,4.99918789,2441.3,2441.2,1.11507]
[1750792084939,4.99918789,2441.3,2441.2,0.46]
[1750792085939,4.99918789,2441.3,2441.2,1.11507]
[1750792087641,4.34414789,2441.3,2441.2,1.11507]
[1750792089239,1.13634789,2441.3,2441.2,1.11507]
[1750792089444,1.13634789,2441.3,2441.2,2.50477]
[1750792091042,1.79138789,2441.3,2441.2,2.50477]
[1750792091252,4.99918789,2441.3,2441.2,0.46]
[1750792091946,4.99918789,2441.3,2441.2,1.11507]
[1750792092547,4.99918789,2441.3,2441.2,0.46]
[1750792093540,4.99918789,2441.3,2441.2,1.11507]
[1750792093944,4.99918789,2441.3,2441.2,0.46]
[1750792102150,4.99918789,2441.3,2441.2,1.11507]
[1750792102351,4.99918789,2441.3,2441.2,0.46]
[1750792102657,30.49318789,2441.3,2441.2,0.46]
[1750792103048,30.4969704,2441.3,2441.2,0.46]
[1750792103245,30.4969704,2441.3,2440.7,2.15]
[1750792103246,0.65517,2440.8,2440.7,2.15]
[1750792103553,0.65523,2440.6,2440.5,0.6618]
[1750792103750,0.65523,2440.6,2440.5,1.8018]
[1750792103949,1.7953604,2440.6,2440.5,1.8018]
[1750792106960,4.84007433,2440.6,2440.5,1.14]
[1750792107458,1.7953604,2440.6,2440.5,1.14]
[1750792107760,10.82297433,2440.6,2440.0,1.57]
[1750792107958,6.25251393,2440.1,2440.0,0.4]
[1750792108150,0.65545,2439.8,2439.5,0.6495]
[1750792108457,39.63564433,2440.1,2439.5,0.6495]
[1750792108458,0.6554,2440.0,2439.8,0.65542]
[1750792108656,0.6554,2440.0,2439.9,0.6495]
[1750792108857,0.6554,2440.0,2439.9,0.7695]
[1750792108858,27.28160009,2440.0,2439.9,0.7695]
[1750792111056,26.1454,2440.0,2439.9,0.7695]
[1750792114759,25.49,2440.0,2439.9,1.42491]
[1750792115365,26.14539,2440.0,2439.9,1.42491]
[1750792115557,26.14539,2440.0,2439.9,0.7695]
[1750792119164,26.14539,2440.0,2439.9,1.42491]
[1750792119367,25.49,2440.0,2439.9,1.42491]
[1750792120066,26.14539,2440.0,2439.9,1.42491]
[1750792121767,26.14539,2440.0,2439.9,0.7695]
[1750792122861,26.14539,2440.0,2439.9,1.42491]
[1750792124069,26.14539,2440.0,2439.9,0.7695]
[1750792125567,26.14539,2440.0,2439.9,1.42491]
[1750792126369,26.14539,2440.0,2439.9,0.7695]
[1750792126870,26.14539,2440.0,2439.9,1.42491]
[1750792127269,25.484,2440.0,2439.9,1.42491]
[1750792127871,26.13939,2440.0,2439.9,1.42491]
[1750792128174,26.13939,2440.0,2439.9,0.7695]
[1750792129468,26.13939,2440.0,2439.9,1.42491]
[1750792130174,30.48137249,2440.0,2439.9,1.42491]
[1750792131372,30.48137249,2440.0,2439.9,0.7695]
[1750792133567,0.65547,2439.7,2439.6,2.0039]
[1750792133773,30.47445249,2439.7,2439.6,4.2809]
[1750792135176,30.47445249,2439.7,2439.6,2.9348]
[1750792136677,29.81798249,2439.7,2439.6,6.63500393]
[1750792136874,29.81798249,2439.7,2439.6,3.59029]
[1750792136875,4.34198249,2439.7,2439.6,3.59029]
[1750792137374,4.34198249,2439.7,2439.6,2.9348]
[1750792137375,4.99745249,2439.7,2439.6,2.9348]
[1750792137569,4.99745249,2439.7,2439.6,3.59029]
[1750792137769,4.99745249,2439.7,2439.6,4.97889]
[1750792138275,4.99745249,2439.7,2439.6,4.3234]
[1750792138774,4.34198249,2439.7,2439.6,4.97889]
[1750792138970,4.99745249,2439.7,2439.6,4.3234]
[1750792139576,4.99745249,2439.7,2439.6,2.9348]
[1750792140773,0.65558,2439.3,2439.2,2.06539]
[1750792140978,1.78976249,2439.3,2439.2,7.1204]
[1750792141376,26.60318249,2439.3,2439.2,7.1204]
[1750792141980,1.13418249,2439.3,2439.2,7.1204]
[1750792142180,0.65555,2439.4,2439.3,0.65558]
[1750792142383,1.13935883,2439.4,2439.3,1.8]
[1750792142678,1.79490883,2439.4,2439.3,1.8]
[1750792142874,27.26290883,2439.4,2439.3,1.8]
[1750792143979,26.60735883,2439.4,2439.3,2.45558]
[1750792144182,27.26290883,2439.4,2439.3,2.45558]
[1750792144382,27.26290883,2439.4,2439.3,1.8]
[1750792144978,27.26290883,2439.4,2439.3,2.45558]
[1750792146188,27.26290883,2439.4,2439.3,1.8]
[1750792146391,27.92290883,2439.4,2439.3,1.8]
[1750792147996,36.03430883,2439.4,2439.3,1.8]
[1750792148292,36.03430883,2439.4,2439.0,0.6516]
[1750792148293,0.65563,2439.1,2439.0,0.6516]
[1750792148493,25.465,2439.1,2439.0,3.53726]
[1750792148693,26.60435883,2439.1,2439.0,3.53726]
[1750792149488,26.60435883,2439.1,2439.0,2.8816]
[1750792149489,27.25998883,2439.1,2439.0,2.8816]
[1750792149695,30.30470276,2439.1,2439.0,3.53726]
[1750792149894,30.30470276,2439.1,2439.0,2.8816]
[1750792150794,30.30470276,2439.1,2439.0,2.23]
[1750792153087,0.65573,2438.8,2438.6,2.00834]
[1750792153302,30.29771953,2438.7,2438.6,0.99463733]
[1750792153602,1.63954,2438.5,2437.9,0.6769]
[1750792153889,6.90843393,2438.0,2437.9,2.16]
[1750792154098,40.22969953,2438.0,2437.9,2.16]
[1750792156289,39.09343393,2438.0,2437.9,2.16]
[1750792156490,40.22567526,2438.0,2437.9,2.16]
[1750792156686,45.22567526,2438.0,2437.9,2.16]
[1750792157295,44.09343393,2438.0,2437.9,2.16]
[1750792158595,39.09343393,2438.0,2437.9,2.16]
[1750792159302,39.74243393,2438.0,2437.9,2.16]
[1750792159605,41.05493393,2438.0,2437.9,2.16]
[1750792160196,39.74243393,2438.0,2437.9,2.16]
[1750792161901,39.74243393,2438.0,2437.3,0.6692]
[1750792161902,1.64001,2437.8,2437.3,0.6692]
[1750792162108,3.04471393,2437.4,2437.3,2.9453]
[1750792162300,28.50671393,2437.4,2437.3,2.2892]
[1750792162500,29.16280393,2437.4,2437.3,2.2892]
[1750792163802,28.50671393,2437.4,2437.3,2.2892]
[1750792164107,29.16280393,2437.4,2437.3,2.2892]
[1750792164305,28.50671393,2437.4,2437.3,2.2892]
[1750792164507,28.50671393,2437.4,2437.3,2.94531]
[1750792164804,29.16280393,2437.4,2437.3,2.2892]
[1750792165605,29.16280393,2437.4,2437.3,1.62]
[1750792165900,30.46100393,2437.4,2437.3,1.62]
[1750792167110,30.75272003,2437.4,2437.3,1.62]
[1750792167707,35.75272003,2437.4,2437.3,1.62]
[1750792168105,0.65622,2437.0,2436.7,0.65626]
[1750792168303,28.50771393,2436.9,2436.7,4.53876]
[1750792168605,28.50771393,2436.9,2436.8,0.65625]
[1750792168814,28.50771393,2436.9,2436.8,3.91875]
[1750792169107,3.2078,2437.0,2436.9,0.65622]
[1750792169304,0.656,2437.6,2436.9,12.89501393]
[1750792169605,3.2078,2437.7,2437.0,0.6833]
[1750792169606,3.04471393,2437.3,2437.0,0.6833]
[1750792169805,25.464,2437.2,2437.1,2.01867]
[1750792169995,6.25251393,2437.7,2437.5,0.65605]
[1750792170201,32.84705,2437.6,2437.5,0.33]
[1750792170399,32.84703,2437.6,2437.5,1.6925]
[1750792170607,32.191,2437.6,2437.5,2.34856]
[1750792170911,32.19,2437.6,2437.5,2.34856]
[1750792171107,32.84603,2437.6,2437.5,2.34856]
[1750792171408,32.84603,2437.6,2437.5,0.33]
[1750792171809,32.84703,2437.6,2437.5,0.98606]
[1750792172005,32.19,2437.6,2437.5,0.98606]
[1750792172307,7.38296,2437.9,2437.7,0.65599]
[1750792172610,7.38296,2437.9,2437.8,2.0531]
[1750792172798,32.84496,2437.9,2437.8,2.3231]
[1750792173298,0.40934184,2438.2,2438.0,0.65592]
[1750792173512,53.967,2438.3,2438.0,0.05]
[1750792173717,25.462,2438.2,2438.1,2.01537]
[1750792173904,25.462,2438.2,2438.1,2.07537]
[1750792174315,13.63535393,2438.4,2438.2,0.65587]
[1750792174610,25.461,2438.3,2438.2,0.65587]
[1750792175208,25.461,2438.3,2438.2,0.01]
[1750792175510,0.65591,2438.1,2437.9,0.65594]
[1750792175810,26.11691,2438.1,2437.9,1.20594]
[1750792176303,3.70063393,2438.0,2437.9,0.55]
[1750792176499,3.04471393,2438.0,2437.9,0.55]
[1750792176704,3.70063393,2438.0,2437.9,0.55]
[1750792177012,3.04471393,2438.0,2437.9,0.55]
[1750792177308,3.70063393,2438.0,2437.9,0.55]
[1750792178011,3.70063393,2438.0,2437.9,1.20595]
[1750792178210,26.11691,2438.1,2437.9,1.20595]
[1750792178610,25.461,2438.1,2437.9,1.20593]
[1750792178803,26.11691,2438.1,2437.9,0.55]
[1750792179619,26.11691,2438.1,2437.9,1.20595]
[1750792179913,0.65592,2438.0,2437.9,1.20595]
[1750792180412,1.7920556,2438.0,2437.9,1.20595]
[1750792180908,1.7920556,2438.0,2437.9,1.2114]
[1750792181309,4.83676953,2438.0,2437.9,1.2114]
[1750792182208,4.83676953,2438.0,2437.9,0.55]
[1750792183714,1.7920556,2438.0,2437.9,0.55]
[1750792184305,27.2440556,2438.0,2437.9,0.55]
[1750792188216,27.2440556,2438.0,2437.9,1.20595]
[1750792188416,27.2440556,2438.0,2437.9,0.55]
[1750792190404,27.2440556,2438.0,2437.9,1.20595]
[1750792190818,27.2440556,2438.0,2437.9,0.55]
[1750792191314,0.65603,2437.6,2437.5,0.6614]
[1750792191520,0.65609,2437.4,2437.3,0.6822]
[1750792191812,4.83693953,2437.4,2437.3,1.2422]
[1750792192210,30.28193953,2437.4,2437.3,0.56]
[1750792193620,27.2372256,2437.4,2437.3,0.56]
[1750792193916,26.10109,2437.4,2437.3,1.21611]
[1750792194116,30.27599014,2437.4,2437.3,0.56]
[1750792194317,27.23127621,2437.4,2437.3,0.56]
[1750792196914,27.23127621,2437.4,2437.3,1.9005]
[1750792198821,27.23127621,2437.4,2437.3,0.56]
[1750792201219,0.65622,2436.9,2436.8,0.96]
[1750792201416,0.65622,2436.9,2436.8,2.0]
[1750792201617,0.65635,2436.5,2436.3,7.01417]
[1750792201821,1.6406,2436.9,2436.3,7.01417]
[1750792201822,25.439,2436.7,2436.4,0.65636]
[1750792202022,0.65633,2436.5,2436.4,3.29]
[1750792202524,0.65633,2436.5,2436.4,3.94636]
[1750792202723,3.2078,2437.1,2436.4,3.29]
[1750792202918,26.56908743,2437.0,2436.9,0.6562]
[1750792203114,27.22527743,2437.0,2436.9,1.6162]
[1750792203325,27.22527743,2437.0,2436.9,0.96]
[1750792204123,26.56908743,2437.0,2436.9,1.61622]
[1750792204520,0.65615,2437.2,2437.0,0.65618]
[1750792204722,26.09315,2437.2,2437.1,0.65617]
[1750792204928,27.2227955,2437.2,2437.1,1.78]
[1750792205823,32.99830618,2437.2,2437.1,1.78]
[1750792206024,34.42770618,2437.2,2437.1,1.78]
[1750792206220,35.10670618,2437.2,2437.1,1.78]
[1750792207624,1.64049,2437.0,2436.3,3.2078]
[1750792207828,1.64049,2437.0,2436.4,0.7165]
[1750792207829,41.18275618,2436.9,2436.4,0.7165]
[1750792208127,0.65633,2436.5,2436.4,3.0465]
[1750792208325,26.09333,2436.5,2436.4,2.33]
[1750792208522,25.437,2436.5,2436.4,2.33]
[1750792208729,25.437,2436.5,2436.4,2.98636]
[1750792209132,26.09333,2436.5,2436.4,2.98636]
[1750792209323,26.09333,2436.5,2436.4,2.33]
[1750792210328,25.437,2436.5,2436.4,2.98636]
[1750792210721,25.437,2436.5,2436.4,3.7615]
[1750792210923,25.438,2436.5,2436.4,4.41786]
[1750792211127,0.6972,2436.9,2436.4,3.7615]
[1750792211331,0.65628,2436.7,2436.5,1.32361]
[1750792211536,0.65628,2436.7,2436.5,5.26201]
[1750792211728,0.6563,2436.6,2436.5,5.26201]
[1750792212133,0.65628,2436.7,2436.6,0.6563]
[1750792212334,0.65628,2436.7,2436.6,3.0384]
[1750792212629,26.09328,2436.7,2436.6,1.69]
[1750792216339,27.21501525,2436.7,2436.6,1.69]
[1750792216937,29.27191525,2436.7,2436.6,1.69]
[1750792219743,1.77801525,2436.7,2436.6,1.69]
[1750792219942,33.91301525,2436.7,2436.6,1.69]
[1750792221941,39.68852593,2436.7,2436.6,1.69]
[1750792222240,41.09452593,2436.7,2436.6,1.69]
[1750792230438,1.77800525,2436.7,2436.6,1.69]
[1750792230644,33.90500525,2436.7,2436.6,1.69]
[1750792233550,26.55159458,2437.2,2437.1,9.23897]
[1750792234042,27.20773458,2437.2,2437.1,8.5828]
[1750792234348,26.55159458,2437.2,2437.1,8.5828]
[1750792235046,26.55159458,2437.2,2437.1,9.23897]
[1750792237952,1.12659458,2437.2,2437.1,14.23897]
[1750792240456,26.0731,2437.4,2437.3,0.65611]
[1750792240457,25.417,2437.4,2437.3,0.65611]
[1750792240660,26.54158513,2437.4,2437.3,1.31611]
[1750792243251,27.19767513,2437.4,2437.3,1.31611]
[1750792244056,26.54158513,2437.4,2437.3,1.31611]
[1750792244249,30.25195966,2437.4,2437.3,1.31611]
[1750792244449,1.78067513,2437.4,2437.3,1.31611]
[1750792244650,26.53358513,2437.4,2437.3,1.31611]
[1750792244955,32.76508,2437.5,2437.4,0.65609]
[1750792245150,32.76508,2437.5,2437.4,0.61]
[1750792245151,33.89182508,2437.5,2437.4,0.61]
[1750792245357,26.53576508,2437.5,2437.4,1.26609]
[1750792245556,25.409,2437.5,2437.4,1.26609]
[1750792245760,26.06506,2437.5,2437.4,1.26609]
[1750792246463,25.409,2437.5,2437.4,1.26609]
[1750792247673,26.06506,2437.5,2437.4,1.26609]
[1750792247871,6.26208453,2437.6,2437.5,0.65606]
[1750792248070,9.73728453,2438.0,2437.5,3.5278]
[1750792248377,26.0609,2438.1,2438.0,0.65591]
[1750792248568,26.0609,2438.1,2438.0,1.31591]
[1750792248569,25.405,2438.1,2438.0,1.31591]
[1750792249172,25.405,2438.2,2438.1,0.6559]